Cogmind - Beta 11.1 @@@ ROGUE MODE // 2022.07.10 @ 13:39:12 Player: Demise Result: Destroyed by Y-45 Defender with Heavy Assault Rifle Performance ------------- Evolutions (1) 500 Regions Visited (3) 600 Robots Destroyed (73) 365 Value Destroyed (1548) 1548 Prototype IDs (8) 160 Alien Tech Used (0) 0 Bonus (135) 135 TOTAL SCORE: 3308 Bonus ------- High Alert Combat Kills 135 Cogmind --------- Core Integrity 0/400 Matter 213/300 Energy 275/275 System Corruption 4% Temperature Cool (18) Movement Rolling (155) Ox5 Location -9/Materials Parts ------- > --- POWER (1) -------- Deuterium Engine > --- PROPULSION (2) --- Wheel Wheel > --- UTILITY (4) ------ Huge Storage Unit Targeting Computer Light Armor Plating Hardened Light Armor Plating > --- WEAPON (2) ------- Light Assault Rifle Heavy Assault Rifle > --- INVENTORY (25) --- Deuterium Engine Improved Treads Improved Treads Structural Scanner Signal Interpreter Seismic Detector Light Armor Plating Light Armor Plating Hardened Light Armor Plating Hacking Suite Tractor Beam Heavy EM Pulse Gun Heavy EM Pulse Gun Light Assault Rifle Light Assault Rifle Light Assault Rifle Heavy Assault Rifle Grenade Launcher Datajack Hammer Katana Peak State ------------ > --- POWER ------------ Deuterium Engine > --- PROPULSION ------- Wheel Wheel > --- UTILITY ---------- Huge Storage Unit Targeting Computer Light Armor Plating Hardened Light Armor Plating > --- WEAPON ----------- Light Assault Rifle Heavy Assault Rifle > --- INVENTORY -------- Ion Engine Improved Treads Improved Treads Structural Scanner Signal Interpreter Seismic Detector Light Armor Plating Light Armor Plating Hardened Light Armor Plating Hacking Suite Tractor Beam Heavy EM Pulse Gun Heavy EM Pulse Gun Light Assault Rifle Light Assault Rifle Light Assault Rifle Heavy Assault Rifle Grenade Launcher Datajack Hammer Katana [Rating: 16] Favorites ----------- Power Ion Engine Engine Ion Engine Propulsion Wheel Treads Improved Treads Wheel Wheel Utility Large Storage Unit Device Seismic Detector Storage Large Storage Unit Processor Targeting Computer Protection Hardened Light Armor Plating Weapon Light Assault Rifle Energy Gun Medium Laser Ballistic Gun Light Assault Rifle Launcher Grenade Launcher Impact Weapon Hammer Build | -11 -10 -10 -9 ------- Run | Scr Mat Min Mat Slots Evolved 2 | . . . 2 Power . | . . . . Propulsion . | . . . . Utility 2 | . . . 2 Weapon . | . . . . Parts Attached 73 | 8 21 4 40 Power 9 | 1 3 . 5 Engine 9 | 1 3 . 5 Core . | . . . . Reactor . | . . . . Propulsion 19 | 4 8 . 7 Treads 3 | . 1 . 2 Leg . | . . . . Wheel 16 | 4 7 . 5 Hover . | . . . . Flight . | . . . . Utility 20 | 1 2 1 16 Device 5 | . . 1 4 Storage 3 | 1 1 . 1 Processor 3 | . 1 . 2 Hackware . | . . . . Protection 9 | . . . 9 Artifact . | . . . . Weapon 25 | 2 8 3 12 Energy Gun 2 | 1 1 . . Energy Cannon . | . . . . Ballistic Gun 17 | 1 5 2 9 Ballistic Cannon . | . . . . Launcher 5 | . 2 1 2 Special Weapon . | . . . . Impact Weapon 1 | . . . 1 Slashing Weapon . | . . . . Piercing Weapon . | . . . . Special Melee Weapon . | . . . . Unidentified Prototypes 1 | . 1 . . Parts Lost 12 | . 3 . 9 Power 2 | . 1 . 1 Propulsion 4 | . 1 . 3 Utility 3 | . . . 3 Weapon 3 | . 1 . 2 Highest Loss Streak 5 | . 2 . 5 To Critical Strikes . | . . . . Average Slot Usage (%) 96 | . 97 100 95 Engine 11 | . 13 14 9 Wheel 24 | . 27 28 19 Device 5 | . . 14 6 Storage 12 | . 14 14 11 Processor 9 | . 12 . 10 Protection 6 | . . . 13 Energy Gun 1 | . 5 . . Ballistic Gun 20 | . 22 16 21 Launcher 2 | . . 11 . Naked Turns . | . . . . Heaviest Build 101 | 12 28 30 101 Greatest Support 46 | 32 20 20 46 Greatest Overweight (x) 5 | 1 2 1 5 Average Overweight (x) 1 | . . 1 2 Largest Inventory Capacity 25 | 8 15 15 25 Average Capacity 16 | 7 14 15 19 Most Carried 21 | 6 15 15 21 Average Carried 13 | 3 12 14 14 Final Capacity 25 | 8 15 15 25 Final Carried 21 | 6 15 15 21 Class Distribution -------------------- 65% | Mutant 34% | Scavenger-Mutant Dominant Class ---------------- Mutant | -10/Materials Mutant | -10/Mines Scavenger-Mutant | -9/Materials Resources | -11 -10 -10 -9 ----------- Run | Scr Mat Min Mat Matter Collected 1533 | 233 477 55 768 Remotely . | . . . . Salvage Created 2134 | 135 739 26 1234 Parts 160 | 13 64 9 74 Haulers Intercepted 4 | . 2 . 2 Recyclers Shooed 3 | 1 1 . 1 Parts Field Recycled . | . . . . Retrieved Matter . | . . . . Parts Self-Destructed . | . . . . Prevented . | . . . . Kills | -11 -10 -10 -9 ------- Run | Scr Mat Min Mat Combat Hostiles Destroyed 49 | . 16 6 27 Guns 36 | . 11 . 25 AOE 13 | . 5 6 2 Classes Destroyed 13 | 3 6 . 4 Worker 7 | 2 4 . 1 Builder 2 | . 2 . . Tunneler 4 | 3 1 . . Hauler 4 | . 2 . 2 Recycler 3 | 1 2 . . Mechanic 1 | . 1 . . Operator 1 | . . . 1 Watcher 2 | . 1 . 1 Swarmer 16 | . 6 6 4 Grunt 25 | . 10 . 15 Brawler 1 | . . . 1 Duelist 1 | . . . 1 Sentry 6 | . . . 6 Best Kill Streak 9 | 4 6 3 9 Combat Bots Only 8 | . 4 3 8 Max Kills in Single Turn 2 | 1 2 2 2 Gunslinging 1 | . . . 1 Exploded 2 | . 2 2 1 Melee . | . . . . Uniques/NPCs Destroyed . | . . . . Combat | -11 -10 -10 -9 -------- Run | Scr Mat Min Mat Damage Taken 2328 | . 485 65 1778 Core 519 | . 103 10 406 Absorbed by Shields . | . . . . Regen/Repaired (Parts) 29 | . 29 . . Core Remaining (%) 77 | 100 . 54 . Volleys Fired 234 | 18 72 6 138 Largest 2 | 2 2 2 2 Hottest 70 | 70 70 40 43 Shots Fired 425 | 36 135 8 246 Gun 411 | 36 127 4 244 Cannon . | . . . . Launcher 14 | . 8 4 2 Special . | . . . . Kinetic 374 | 18 108 4 244 Thermal 37 | 18 19 . . Explosive 14 | . 8 4 2 Electromagnetic . | . . . . Robot Hit Streak 20 | 4 14 6 20 Robot Miss Streak 5 | 4 4 3 5 Penetration Max . | . . . . Secondary Targets 3 | . 1 . 2 Max Gunslinging Chain 1 | . 1 . 1 Shots Hit Robots 305 | 16 88 4 197 Core Hits 133 | 6 47 9 71 Critical Kills 3 | . 1 . 2 Critical Parts Destroyed 1 | . . . 1 Critical Strikes 6 | . 3 . 3 Burn 2 | . 2 . . Destroy 4 | . 1 . 3 Melee Attacks 3 | . . . 3 Impact 3 | . . . 3 Slashing . | . . . . Piercing . | . . . . Sneak Attacks . | . . . . Combat Hostiles . | . . . . Follow-up Attacks . | . . . . Damage Inflicted 3797 | 204 1310 294 1989 Guns 2919 | 204 862 18 1835 Cannons . | . . . . Explosions 875 | . 448 276 151 Melee . | . . . . Ramming 3 | . . . 3 Kinetic 2630 | 105 672 18 1835 Thermal 289 | 99 190 . . Explosive 875 | . 448 276 151 Electromagnetic . | . . . . Impact . | . . . . Slashing . | . . . . Piercing . | . . . . Highest Corruption 4 | . . . 4 Average Corruption 3 | . . . 3 Corruption Purged . | . . . . Corruption Blocked . | . . . . Effects 17 | . . . 17 Message Errors 2 | . . . 2 Matter Fused 5 | . . . 5 Heat Flow Errors 1 | . . . 1 Energy Discharges 3 | . . . 3 Parts Rejected 1 | . . . 1 Data Loss (minor) 2 | . . . 2 Misfires 1 | . . . 1 Weapon Failures 2 | . . . 2 Overload Shots . | . . . . Overflow Damage . | . . . . Projectiles . | . . . . Explosions . | . . . . Melee . | . . . . Knockbacks . | . . . . Impact . | . . . . Kinetic . | . . . . Secondary . | . . . . Self-Inflicted Damage 58 | . 14 43 1 Shots 3 | . 1 2 . Rammed 1 | . . . 1 Targets Rammed 1 | . . . 1 Kicked . | . . . . Crushed . | . . . . Highest Temperature 246 | 63 66 . 246 Average Temperature 48 | 25 23 . 61 Received Heat Transfer 801 | . 201 . 600 Effects 2 | . . . 2 Interference 2 | . . . 2 Siege Activations . | . . . . Robots Corrupted . | . . . . Combat Hostiles . | . . . . Parts Fried . | . . . . Impact Corruptions . | . . . . Robots Melted . | . . . . Combat Hostiles . | . . . . Parts Melted 1 | . 1 . . Heat Transferred 999 | 296 703 . . Parts Sabotaged . | . . . . Parts Stolen . | . . . . Parts Stripped . | . . . . Power Chain Reactions 1 | . 1 . . Missiles Intercepted . | . . . . Alert | -11 -10 -10 -9 ------- Run | Scr Mat Min Mat Peak Influence 732 | 30 595 293 732 Initial 181 | . 19 181 92 Average 353 | 11 365 252 418 Maximum Alert Level 3 | . 2 1 3 Low Security (%) 21 | 100 22 24 12 Level 1 37 | . 23 75 36 Level 2 36 | . 54 . 42 Level 3 3 | . . . 8 Level 4 . | . . . . Level 5 . | . . . . High Security . | . . . . Max Security . | . . . . Squads Dispatched 12 | . 4 . 8 Investigation 10 | . 4 . 6 Extermination . | . . . . Reinforcement 2 | . . . 2 Assault . | . . . . Garrison . | . . . . Intercept . | . . . . Searches Triggered . | . . . . Construction Impeded . | . . . . Haulers Reinforced . | . . . . Active Scanning Responses . | . . . . Cargo Convoy Interrupts . | . . . . Stealth | -11 -10 -10 -9 --------- Run | Scr Mat Min Mat Distress Signals 8 | . 1 . 7 Communications Jammed . | . . . . Distress Signals . | . . . . Times Spotted 77 | . 26 5 46 Peak Tracking Total 6 | . 5 4 6 Tactical Retreats 6 | . 3 1 2 Traps | -11 -10 -10 -9 ------- Run | Scr Mat Min Mat Traps Triggered 4 | . 2 . 2 Indirectly . | . . . . Trap Hack Attempts . | . . . . Triggered . | . . . . Disarmed . | . . . . Reprogrammed 3 | . 3 . . Reused . | . . . . Traps Extracted . | . . . . Installed . | . . . . Triggered . | . . . . Machines | -11 -10 -10 -9 ---------- Run | Scr Mat Min Mat Machines Disabled 4 | . 4 . . Max in Single Turn 1 | . 1 . . Machines Sabotaged . | . . . . Garrisons Compromised . | . . . . Overloaded Fab Kills . | . . . . Hacking | -11 -10 -10 -9 --------- Run | Scr Mat Min Mat Machines Accessed 19 | . 9 . 10 Terminals 14 | . 7 . 7 Fabricators . | . . . . Repair Stations 2 | . 1 . 1 Recycling Units 3 | . 1 . 2 Scanalyzers . | . . . . Garrison Access . | . . . . Total Hacks 72 | . 36 . 36 Successful 38 | . 25 . 13 Failed 33 | . 10 . 23 Catastrophic 5 | . . . 5 Database Lockouts 1 | . 1 . . Manual 53 | . 24 . 29 Terminals 59 | . 31 . 28 Fabricators . | . . . . Repair Stations 4 | . 2 . 2 Recycling Units 9 | . 3 . 6 Scanalyzers . | . . . . Garrison Access . | . . . . Terminal Hacks 16 | . 14 . 2 Robot Analysis 5 | . 4 . 1 Prototype ID Bank 4 | . 3 . 1 Level Access Points 1 | . 1 . . Branch Access Points 1 | . 1 . . Terminal Index 1 | . 1 . . Locate Traps 2 | . 2 . . Reprogram Traps 1 | . 1 . . Hauler Manifests 1 | . 1 . . Fabricator Hacks . | . . . . Repair Station Hacks 3 | . 2 . 1 Scan Component 2 | . 1 . 1 Repair 1 | . 1 . . Recycling Unit Hacks 2 | . . . 2 Retrieve Components 2 | . . . 2 Scanalyzer . | . . . . Garrison Access Hacks . | . . . . Unauthorized Hacks 17 | . 9 . 8 Terminals 14 | . 8 . 6 Assimilate 3 | . 3 . . Botnet 9 | . 4 . 5 Operators 2 | . 1 . 1 Fabricators . | . . . . Repair Stations . | . . . . Recycling Units 3 | . 1 . 2 Tunnel 3 | . 1 . 2 Scanalyzers . | . . . . Garrison Access . | . . . . Data Cores Recovered . | . . . . Used . | . . . . Hacking Detections 17 | . 7 . 10 Full Trace Events 9 | . 4 . 5 Feedback Events . | . . . . Feedback Blocked . | . . . . Robot Schematics Acquired . | . . . . Robots Built . | . . . . Authchips . | . . . . Time . | . . . . Total Robot Build Rating . | . . . . Part Schematics Acquired . | . . . . Parts Built . | . . . . Authchips . | . . . . Time . | . . . . Total Part Build Rating . | . . . . Parts Repaired 1 | . 1 . . Time 26 | . 26 . . Parts Recycled . | . . . . Recycled Matter . | . . . . Retrieved Matter . | . . . . Retrieved Components 15 | . . . 15 Parts Scanalyzed . | . . . . Part Schematics Acquired . | . . . . Parts Damaged . | . . . . Bothacking | -11 -10 -10 -9 ------------ Run | Scr Mat Min Mat Used RIF Installer . | . . . . Robots Hacked . | . . . . Non-combat . | . . . . Combat . | . . . . Robot Hacks Applied . | . . . . Relay Couplers Released . | . . . . Fabnet Peak Effective % . | . . . . Robots Rewired . | . . . . Allies Hacked . | . . . . Hacks Repelled . | . . . . Allies | -11 -10 -10 -9 -------- Run | Scr Mat Min Mat Total Allies 4 | . 1 3 . Largest Group 3 | . 1 3 3 Highest-Rated Group 40 | . 10 40 40 Highest-Rated Ally 16 | . 10 16 16 Total Orders 1 | . . . 1 STAY 1 | . . . 1 Ally Attacks . | . . . . Total Damage . | . . . . Kills . | . . . . Allies Corrupted . | . . . . Allies Melted . | . . . . Intel | -11 -10 -10 -9 ------- Run | Scr Mat Min Mat Robot Analysis Total 5 | . 4 . 1 Derelict Logs Recovered 2 | . . 2 . Drone Launches . | . . . . Drone Recoveries . | . . . . Exploration | -11 -10 -10 -9 ------------- Run | Scr Mat Min Mat Turns Passed 2810 | 118 951 514 1227 Spaces Moved 1846 | 51 668 482 645 Core 14 | 14 . . . Treads 37 | . 1 . 36 Legs . | . . . . Wheels 1795 | 37 667 482 609 Hover . | . . . . Flight . | . . . . Fastest Speed 50 | 50 80 95 95 Average Speed 102 | 83 94 95 117 Slowest Speed 240 | 100 240 95 160 Overloaded Moves . | . . . . Propulsion Burnouts . | . . . . Robots Hopped . | . . . . Cave-ins Triggered . | . . . . Exploration Rate (%) 67 | 4 95 95 77 Regions Visited 3 Branch Regions 1 Pre-discovered Areas 4 | . 1 1 2 Known Exits Taken 2 | . 1 1 . Unknown Exits Taken 1 | 1 . . . Scrap Searched 2 | . . 2 . Spaces Dug 6 | . 3 . 3 Terrain Destroyed 90 | . 32 37 21 Melee 3 | . . . 3 Projectile . | . . . . AOE 87 | . 32 37 18 Terrain Rammed . | . . . . Walls Destroyed . | . . . . Machines Disabled . | . . . . Actions | -11 -10 -10 -9 --------- Run | Scr Mat Min Mat Total 2384 | 89 870 529 896 Wait 158 | . 75 37 46 Move 1843 | 50 667 481 645 Hop . | . . . . Pick Up 34 | 10 16 . 8 Fast Attach 26 | 3 7 . 16 Attach 15 | 4 2 1 8 Detach 11 | 1 3 1 6 Swap 32 | 1 12 3 16 Drop 27 | 2 16 . 9 Fire 234 | 18 72 6 138 Melee 3 | . . . 3 Ram 1 | . . . 1 Kick . | . . . . Crush . | . . . . Escape Stasis . | . . . . Rewire . | . . . . Trap . | . . . . Miscellaneous . | . . . . Route ------- -11/Scrapyard -10/Materials (discovered 5 exits: *Mat x3 / *Min x2) -10/Mines (discovered 2 exits: *Mat x2) -9/Materials (discovered 4 exits: *Mat x2 / [*Min] / [*Sto]) History --------- Turn | Location | Event 9 | -11/Scrapyard | Discovered new exit (range 16) 119 | -11/Scrapyard | Entered Materials 126 | -10/Materials | Discovered new exit (range 3) 210 | -10/Materials | Discovered new exit (range 8) 291 | -10/Materials | Central database locked down 315 | -10/Materials | Build established: Mutant 385 | -10/Materials | Discovered new exit (range 12) 712 | -10/Materials | Identified exit to Mines 712 | -10/Materials | Identified exit to Materials 811 | -10/Materials | Repaired Grenade Launcher 1070 | -10/Materials | Entered Mines 1206 | -10/Mines | Learned location of 1 exit from Materials 1370 | -10/Mines | Discovered exit to Materials (range 16) 1386 | -10/Mines | Learned location of Storage (-9) 1484 | -10/Mines | Discovered exit to Materials (range 11) 1520 | -10/Mines | Assisted by bots powering up and referring to "LRC-V3" 1584 | -10/Mines | Entered Materials 1584 | -9/Materials | Accompanied by 3 allies 1584 | -9/Materials | Evolved 2 slots: Utility x2 1585 | -9/Materials | Identified exit to Materials 1786 | -9/Materials | Build established: Scavenger-Mutant 1829 | -9/Materials | Core integrity fell below 50% 1877 | -9/Materials | Lost 5 parts (1p1n1u2w) 2055 | -9/Materials | Discovered new exit (range 15) 2368 | -9/Materials | Core integrity fell below 20% 2505 | -9/Materials | Destroyed 8 combat bots 2710 | -9/Materials | Discovered new exit (range 7) 2743 | -9/Materials | Discovered exit to Materials (range 16) 2811 | -9/Materials | Destroyed by Y-45 Defender with Heavy Assault Rifle Last Messages --------------- 02658_ Acquired Signal Interpreter. 02672_ DCK2=W#942KCVDIRBIX410V:TB>Trojan(Botnet) Trojan loaded successfully. Testing... Terminal linked with 4 systems. Awaiting botnet instructions. 02682_ W-16 Scout sends out distress signal. 02689_ System corrupted: Energy discharge (-62). 02695_ Y-45 Defender destroyed. 02698_ K-01 Serf collects debris. 02710_ EXIT=FOUND 02723_ System corrupted: Component data lost. 02743_ EXIT=FOUND: MATERIALS 02752_ System corrupted: Matter fused (-9). 02774_ Acquired Deuterium Engine. 02776_ Dropped Ion Engine. 02778_ Acquired Deuterium Engine. 02795_ W-16 Scout sends out distress signal. Map ----- +----------------------------------------------------+ | ??????????????????????######## """ | | ??????????????????????# # """ | | ??????????????????????# # | | ??????????????????????# """ # """ | | ??????????????????????#! """ # """ | | ?????????##########???# """ # """ | | ?????????# #???# # | | ?????????# ########+######+ | | ?????????# ## | | ?????????# ## *! | | ?????????# !! ## %! | | ?????????# !! ## ###+######+ | | ?????????# !! ## ## [ # = | | ??????????? ## ## # | | ????????????? ## ## [ # | | ????????#######+### # # | | ????????# # "T" # | | ????????# < # """ # | | ######??# ######## | | ? ??# ####### #??????# | | ? """ ?# #?????#######??????# | | ? """ ?# #??####????????????### | | # """ # #? ????????????### | | # # #?"""""????????????# | | # Y # """"" ???????????# " | | #! #@ # """"" #??????????# " | | # "" # + #??????????# | | # """?# #########??????????### | | # S"?# t# ???????????????? | | # ??# # """"???????????????? | | ##### ??# # """""??????????????? | | ????#???# # """""??????????????? | | ????????# # """""??????????????? | | ????????# + """"" ?????????????? | | ????##### # """"" ?????????????? | | ????# * # """"" ?????????????? | | ????#** # #????????????? | | ????#!! # #????????????? | | ????#!! # #????????????? | | ????#[[ #########????????????? | | ????#[[ #????????????????????? | | ????##### #????????????????????? | | ????????# < #????????????????????? | | ????????# #????????????????????? | | ????????#####????????????????????? | | ?????????????????????????????????? | | ?????????????????????????????????? | | ?????????????????????????????????? | | ?????????????????????????????????? | | ?????????????????????????????????? | +----------------------------------------------------+ Best States ------------- Heat Dissipation 38 Energy Generation 14 Energy Capacity 275 Matter Stores 300 Matter Capacity 300 Sight Range 16 Terrain Scan Density 10 Armor Coverage 300 Evasion (%) 50 Targeting Accuracy 5 Recoil Reduction 2 Item Schematics ----------------- None Robot Schematics ------------------ None Fabricated ------------ Nothing Alien Tech Used ----------------- None Achievements -------------- None Challenges ------------ None Game ------ Seed ProtonNovaScreen Manual? 0 Play Time 00:32:32 Cumulative 664.1 hours Start 2022.07.10 @ 09:01:59 End 2022.07.10 @ 13:39:12 Sessions 3 Manual Loads 0 Difficulty Rogue Special Mode None Game No. 550 Rogue 550 Adventurer 0 Explorer 0 Win Type - Total 8 Types 7/0/0/1/0/0/0/0/0 Lore% 75 Gallery% 86 Achievement% 69 Wizard Run 0 Options --------- ASCII 0 Keyboard 1 Movement Numpad Keybinds 0 Fullscreen 1 Font 12/Terminus Map View 83x54 Tactical HUD 1 Map Filters NONE Filters NONE Steam 1 RUN: e280b0c8-5b75-4824-b389-2745aea6b9d0